fUST/lending_fUST_20241119
["ID","MTS","AMOUNT","RATE_DAILY","PERIOD"]
[342640588,1732017046418,-500.0,0.00024657,7]
[342640589,1732017046428,-500.0,0.00024657,7]
[342640590,1732017046437,-500.0,0.00024657,7]
[342640591,1732017046447,-607.46,0.00024657,7]
[342640592,1732017046456,-500.0,0.00024657,7]
[342640593,1732017046466,-500.0,0.00024657,7]
[342640594,1732017046475,-500.0,0.00024657,7]
[342640595,1732017046484,-500.0,0.00024657,7]
[342640596,1732017046495,-602.85026317,0.00024657,7]
[342640597,1732017046504,-500.0,0.00024657,7]
[342640598,1732017046514,-500.0,0.00024657,7]
[342640599,1732017046523,-500.0,0.00024657,7]
[342640600,1732017046533,-500.0,0.00024657,7]
[342640601,1732017046542,-355.11,0.00024657,7]
[342640602,1732017046551,-500.0,0.00024657,7]
[342640603,1732017046561,-501.84305302,0.00024657,7]
[342640604,1732017046571,-500.0,0.00024657,7]
[342640605,1732017046580,-501.42927583,0.00024657,7]
[342640606,1732017046589,-500.0,0.00024657,7]
[342640607,1732017046599,-275.74773903,0.00024657,7]
[342640608,1732017046609,-500.0,0.00024657,7]
[342640609,1732017046618,-500.0,0.00024657,7]
[342640610,1732017046628,-500.0,0.00024657,7]
[342640611,1732017046637,-500.0,0.00024657,7]
[342640612,1732017046647,-500.0,0.00024657,7]
[342640613,1732017046657,-226.67,0.00024657,7]
[342640614,1732017046666,-500.0,0.00024657,7]
[342640615,1732017046675,-501.02350807,0.00024657,7]
[342640616,1732017046685,-500.0,0.00024657,7]
[342640617,1732017046695,-506.70122185,0.00024657,7]
[342640618,1732017046704,-500.0,0.00024657,7]
[342640619,1732017046714,-500.0,0.00024657,7]
[342640620,1732017046726,-500.0,0.00024657,7]
[342640621,1732017046735,-500.0,0.00024657,7]
[342640622,1732017046744,-500.0,0.00024657,7]
[342640623,1732017046754,-291.28,0.00024657,7]
[342640624,1732017046763,-500.0,0.00024657,7]
[342640625,1732017046772,-584.25,0.00024657,7]
[342640626,1732017046782,-500.0,0.00024657,7]
[342640627,1732017046791,-500.0,0.00024657,7]
[342640628,1732017046802,-500.0,0.00024657,7]
[342640629,1732017046811,-500.0,0.00024657,7]
[342640630,1732017046821,-500.0,0.00024657,7]
[342640631,1732017046831,-514.26,0.00024657,7]
[342640632,1732017046842,-500.0,0.00024657,7]
[342640633,1732017046851,-500.0,0.00024657,7]
[342640634,1732017046861,-500.0,0.00024657,7]
[342640635,1732017046871,-404.37,0.00024657,7]
[342640636,1732017046882,-500.0,0.00024657,7]
[342640637,1732017046892,-345.28,0.00024657,7]
[342640638,1732017046901,-500.0,0.00024657,7]
[342640639,1732017046911,-500.0,0.00024657,7]
[342640640,1732017046920,-500.0,0.00024657,7]
[342640641,1732017046929,-302.65,0.00024657,7]
[342640642,1732017046939,-2336.0,0.00024657,2]
[342640643,1732017046949,-500.0,0.00024657,7]
[342640644,1732017046964,-298.89,0.00024657,7]
[342640645,1732017046976,-500.0,0.00024657,7]
[342640646,1732017046985,-500.0,0.00024657,7]
[342640647,1732017046995,-500.0,0.00024657,7]
[342640648,1732017047005,-926.4,0.00024657,7]
[342640649,1732017047015,-926.4,0.00024657,7]
[342640650,1732017047024,-926.4,0.00024657,7]
[342640651,1732017047036,-500.0,0.00024657,7]
[342640652,1732017047047,-606.78,0.00024657,7]
[342640653,1732017047057,-500.0,0.00024657,7]
[342640654,1732017047066,-500.0,0.00024657,7]
[342640655,1732017047075,-500.0,0.00024657,7]
[342640656,1732017047085,-500.0,0.00024657,7]
[342640657,1732017047094,-500.0,0.00024657,7]
[342640658,1732017047104,-457.97,0.00024657,7]
[342640659,1732017047113,-500.0,0.00024657,7]
[342640660,1732017047123,-243.99,0.00024657,7]
[342640661,1732017047132,-593.38,0.00024657,7]
[342640662,1732017047142,-500.0,0.00024657,7]
[342640663,1732017047151,-167.69,0.00024657,7]
[342640664,1732017047160,-500.0,0.00024657,7]
[342640665,1732017047169,-586.99,0.00024657,7]
[342640666,1732017047178,-500.0,0.00024657,7]
[342640667,1732017047187,-556.25,0.00024657,7]
[342640668,1732017047196,-500.0,0.00024657,7]
[342640669,1732017047206,-500.0,0.00024657,7]
[342640670,1732017047215,-500.0,0.00024657,7]
[342640671,1732017047226,-500.0,0.00024657,7]
[342640672,1732017047235,-363.32,0.00024657,7]
[342640673,1732017047244,-500.0,0.00024657,7]
[342640674,1732017047254,-500.0,0.00024657,7]
[342640675,1732017047264,-500.0,0.00024657,7]
[342640676,1732017047273,-258.81,0.00024657,7]
[342640677,1732017047282,-537.86321444,0.00024657,7]
[342640678,1732017047291,-500.0,0.00024657,7]
[342640679,1732017047300,-500.0,0.00024657,7]
[342640680,1732017047310,-500.0,0.00024657,7]
[342640681,1732017047319,-500.0,0.00024657,7]
[342640682,1732017047330,-500.0,0.00024657,7]
[342640683,1732017047340,-500.0,0.00024657,7]
[342640684,1732017047350,-500.0,0.00024657,7]
[342640685,1732017047359,-500.0,0.00024657,7]
[342640686,1732017047370,-500.0,0.00024657,7]
[342640687,1732017047379,-500.0,0.00024657,7]
[342640688,1732017047388,-500.0,0.00024657,7]
[342640689,1732017047397,-517.62458636,0.00024657,7]
[342640690,1732017047406,-500.82993528,0.00024657,7]
[342640691,1732017047416,-500.0,0.00024657,7]
[342640692,1732017047426,-554.37442482,0.00024657,7]
[342640693,1732017047436,-500.0,0.00024657,7]
[342640694,1732017047446,-500.0,0.00024657,7]
[342640695,1732017047456,-500.0,0.00024657,7]
[342640696,1732017047466,-500.0,0.00024657,7]
[342640697,1732017047477,-500.0,0.00024657,7]
[342640698,1732017047486,-500.0,0.00024657,7]
[342640699,1732017047494,-500.0,0.00024657,7]
[342640700,1732017047504,-510.15893576,0.00024657,7]
[342640701,1732017047513,-593.79,0.00024657,7]
[342640702,1732017047523,-500.0,0.00024657,7]
[342640703,1732017047532,-264.69,0.00024657,7]
[342640704,1732017047542,-500.0,0.00024657,7]
[342640705,1732017047551,-507.17475758,0.00024657,7]
[342640706,1732017047560,-503.88044085,0.00024657,7]
[342640707,1732017047571,-500.0,0.00024657,7]
[342640708,1732017047581,-311.59,0.00024657,7]
[342640709,1732017047590,-500.0,0.00024657,7]
[342640710,1732017047599,-626.21,0.00024657,7]
[342640711,1732017047609,-500.0,0.00024657,7]
[342640712,1732017047619,-500.0,0.00024657,7]
[342640713,1732017047628,-317.53,0.00024657,7]
[342640714,1732017047639,-500.0,0.00024657,7]
[342640715,1732017047648,-500.0,0.00024657,7]
[342640716,1732017047658,-500.0,0.00024657,7]
[342640717,1732017047667,-455.61,0.00024657,7]
[342640718,1732017047676,-500.0,0.00024657,7]
[342640719,1732017047686,-500.0,0.00024657,7]
[342640720,1732017047695,-500.0,0.00024657,7]
[342640721,1732017047705,-501.43899181,0.00024657,7]
[342640722,1732017047714,-500.0,0.00024657,7]
[342640723,1732017047726,-580.84037551,0.00024657,7]
[342640724,1732017047735,-56.68849271,0.00024657,7]
[342640725,1732017047838,-162.30919976,0.00024657,7]
[342640731,1732017495664,199.67,0.00028416,120]
[342640732,1732017495686,35.6770108,0.00028416,120]
[342640738,1732018034189,-400.0,0.00013973,2]
[342640739,1732018034212,-89.8773368,0.00018,2]
[342640740,1732018150162,-357.89355885,0.00013973,2]
[342640743,1732018170089,-42.10644115,0.00013973,2]
[342640811,1732018232519,-999.57912866,0.00018,2]
[342640813,1732018232533,-828.98942233,0.00018,2]
[342641389,1732018238402,-5097.17911221,0.00018,2]
[342641390,1732018238412,-250.0,0.00019494,2]
[342641391,1732018238421,-165.383182,0.00019763,2]
[342641392,1732018238430,-206.75,0.0002,2]
[342641393,1732018238440,-205.755,0.00020026,2]
[342641394,1732018238449,-163.691,0.00020026,2]
[342641395,1732018238459,-400.0,0.00020447,2]
[342641396,1732018238468,-151.12248987,0.00020527,2]
[342641397,1732018238478,-277.0,0.00020596,2]
[342641398,1732018238488,-1185.164126,0.00020597,2]
[342641399,1732018238498,-1185.164126,0.00021282,2]
[342641400,1732018238507,-24900.0,0.00021492,2]
[342641401,1732018238517,-221.50804204,0.00021767,2]
[342641402,1732018238527,-571.4663126,0.00021967,2]
[342641403,1732018238541,-613.6978134,0.00021967,2]
[342641404,1732018238550,-159.808629,0.00021974,2]
[342641405,1732018238560,-534.0,0.00022,2]
[342641406,1732018238570,-206.75,0.00022,2]
[342641407,1732018238581,-157.636449,0.00022155,2]
[342641408,1732018238590,-534.0,0.00022192,2]
[342641409,1732018238603,-534.0,0.00022466,2]
[342641410,1732018238613,-184.6599134,0.00022521,2]
[342641411,1732018238623,-3000.0,0.00022521,2]
[342641412,1732018238632,-534.0,0.0002274,2]
[342641413,1732018238641,-534.0,0.00023014,2]
[342641414,1732018238651,-534.0,0.00023014,2]
[342641415,1732018238660,-8181.55853335,0.00023617,2]
[342641494,1732018240403,-157.63645,0.0001987,2]
[342641495,1732018240414,-701.20252741,0.00023617,2]
[342641496,1732018240424,-206.75,0.00024,2]
[342641497,1732018240434,-237.6191797,0.00024071,2]
[342641498,1732018240443,-178.51243746,0.00024071,2]
[342641499,1732018240453,-280.12753043,0.00024072,2]
[342641535,1732018246257,-334.0,0.00022,2]
[342641536,1732018246268,-221.50804202,0.00022704,2]
[342641537,1732018246280,-8602.63353033,0.00024072,2]
[342641538,1732018246290,-8882.76106076,0.00024259,2]
[342641539,1732018246307,-150.0,0.00024404,2]
[342641540,1732018246322,-8882.76106078,0.00024469,2]
[342641541,1732018246333,-159.01,0.00024656,7]
[342641542,1732018246343,-62002.24521885,0.00024657,2]
[342641548,1732018831347,600.0,0.00014,5]
[342641558,1732019226121,-218.34887343,0.00013973,2]
[342641570,1732019348166,-300.0,0.00010899,2]
[342641571,1732019348192,-300.0,0.00010899,2]
[342641572,1732019348213,-16261.77789536,0.000109,2]
[342641573,1732019348241,-420.0,0.00011978,2]
[342641574,1732019348272,-570.77951669,0.00013164,2]
[342641577,1732019349103,-16.22048331,0.00013164,2]
[342641578,1732019349124,-1049.30652032,0.00013973,2]
[342641579,1732019350110,-259.90318031,0.00013973,2]
[342641580,1732019370135,-353.45007068,0.00011878,2]
[342641581,1732019370155,-635.82516319,0.00013973,2]
[342641582,1732019370176,-236.81900689,0.00013973,2]
[342641585,1732019374141,-163.18099311,0.00013973,2]
[342641586,1732019374164,-326.81900689,0.00014467,2]
[342642203,1732019438483,-759.18588217,0.00017528,2]
[342642205,1732019438492,-7015.625,0.00018,2]
[342642207,1732019438502,-3000.0,0.00018988,2]
[342642209,1732019438513,-935.18911783,0.0001999,2]
[342642315,1732019440462,-4017.72473592,0.0001999,2]
[342642316,1732019440473,-400.0,0.00020447,2]
[342642317,1732019440482,-11816.48648091,0.00021,2]
[342642319,1732019440492,-150.0,0.00021,2]
[342642321,1732019440502,-281.44164108,0.000212,2]
[342642323,1732019440511,-796.34714242,0.00021748,2]
[342642325,1732019440523,-944.39389295,0.00021748,2]
[342642359,1732019443699,-504.252,0.00021748,2]
[342642362,1732019443773,-4394.80434944,0.00021748,2]
[342642383,1732019446428,-1272.02409374,0.00018,2]
[342642384,1732019446487,-5743.60090626,0.00018,2]
[342642385,1732019446497,-12149.15773799,0.00021748,2]
[342642386,1732019446506,-184.6599134,0.00021748,2]
[342642387,1732019446516,-150.0,0.00022,2]
[342642388,1732019446525,-208.98144235,0.00022,2]
[342642392,1732019570606,160.7129892,0.000282,120]
[342642393,1732019651916,366.71132,0.00014,5]
[342642402,1732019940399,191.871,0.00026,60]
[342642406,1732020295264,2000.0,0.00026,60]
[342642408,1732020312468,2000.0,0.00026,60]
[342642409,1732020348889,2000.0,0.00026,60]
[342642410,1732020440153,-334.47767089,0.00013973,2]
[342642411,1732020448100,-65.52232911,0.00013973,2]
[342642412,1732020448122,-152.56372309,0.000179,2]
[342642413,1732020450082,-115.53725712,0.000179,2]
[342642414,1732020450102,-50.65527267,0.00018,2]
[342642415,1732020457477,1000.0,0.00026,60]
[342642439,1732020572087,-1198.63015761,0.00018,2]
[342642516,1732020632841,-2758.16924163,0.00018,2]
[342642888,1732020638661,-3008.17032809,0.00018,2]
[342642890,1732020638670,-165.383182,0.00019792,2]
[342642892,1732020638680,-2049.8513681,0.00020359,2]
[342642894,1732020638689,-400.0,0.00020447,2]
[342642895,1732020638699,-183.310963,0.00020563,2]
[342642898,1732020638708,-150.0,0.00021,2]
[342642900,1732020638718,-300.0,0.00021369,2]
[342642902,1732020638727,-300.0,0.00021369,2]
[342642903,1732020638737,-150.0,0.0002137,2]
[342642905,1732020638746,-487.273,0.0002137,2]
[342642907,1732020638755,-1291.14884023,0.00021537,2]
[342642965,1732020640623,-1871.85289907,0.00021537,2]
[342642978,1732020643613,-749.25718908,0.00021537,2]
[342643000,1732020646595,-293.19945781,0.00021537,2]
[342643014,1732021262523,2116.4757234,0.00014,5]
[342643022,1732021629159,-400.0,0.00013973,2]
[342643023,1732021629180,-62.69820834,0.00018,2]
[342643028,1732021747146,-239.82227275,0.00010959,2]
[342643074,1732021831991,-165.87,0.00010959,2]
[342643075,1732021832000,-829.37,0.00010959,2]
[342643076,1732021832010,-1053.708224,0.00017161,2]
[342643077,1732021832020,-180.02125545,0.00017241,2]
[342643078,1732021832029,-4032.738314,0.00017271,2]
[342643079,1732021832038,-235.3033972,0.00017341,2]
[342643080,1732021832048,-1053.708224,0.00017846,2]
[342643081,1732021832057,-300.0,0.00017999,2]
[342643082,1732021832066,-300.0,0.00017999,2]
[342643083,1732021832075,-514.79596827,0.00018,2]
[342643084,1732021832084,-7015.625,0.00018,2]
[342643085,1732021832093,-316.07082924,0.00018152,2]
[342643086,1732021832103,-627.05146778,0.0001825,2]
[342643087,1732021832111,-64260.93074402,0.0001825,2]
[342643088,1732021832123,-2866.78788819,0.0001825,2]
[342643089,1732021832132,-500.0,0.00018251,2]
[342643090,1732021832142,-267.45321005,0.00018251,2]
[342643091,1732021832151,-166.50959834,0.00018251,2]
[342643092,1732021832160,-500.0,0.00018251,2]
[342643093,1732021832169,-500.0,0.00018251,2]
[342643094,1732021832178,-500.0,0.00018251,2]
[342643095,1732021832187,-500.0,0.00018251,2]
[342643096,1732021832197,-500.0,0.00018251,2]
[342643097,1732021832206,-544.71602544,0.00018251,2]
[342643098,1732021832215,-523.21566246,0.00018251,2]
[342643099,1732021832224,-158.5279275,0.00018251,2]
[342643100,1732021832233,-500.0,0.00018251,2]
[342643101,1732021832243,-500.0,0.00018251,2]
[342643102,1732021832252,-444.94998908,0.00018251,2]
[342643103,1732021832264,-55.05001092,0.00018251,2]
[342643104,1732021832274,-500.0,0.00018251,2]
[342643105,1732021832284,-500.0,0.00018251,2]
[342643106,1732021832293,-500.0,0.00018251,2]
[342643107,1732021832302,-154.40988228,0.00018251,2]
[342643108,1732021832311,-500.0,0.00018251,2]
[342643110,1732021832321,-478.52371727,0.00018251,2]
[342643111,1732021832331,-500.0,0.00018251,2]
[342643113,1732021832340,-500.0,0.00018251,2]
[342643115,1732021832350,-374.96502509,0.00018251,2]
[342643177,1732021837982,-257.54425784,0.00018251,2]
[342643178,1732021837991,-248.16829369,0.00018251,2]
[342643179,1732021838001,-198.91958658,0.00018251,2]
[342643180,1732021838010,-4772.7697506,0.00018252,2]
[342643181,1732021838543,-20127.2302494,0.00018252,2]
[342643182,1732021838554,-250.0,0.00018411,2]
[342643183,1732021838566,-1260.0548708,0.0001845,2]
[342643184,1732021838578,-1053.708224,0.00018531,2]
[342643185,1732021838590,-6660.03398433,0.00018885,2]
[342643195,1732021839790,-427.63664462,0.00018885,2]
[342643208,1732021842798,-500.0,0.00018249,2]
[342643210,1732021842809,-500.0,0.00018249,2]
[342643211,1732021842821,-391.46840694,0.00018249,2]
[342643212,1732021842832,-500.0,0.00018249,2]
[342643213,1732021842843,-500.0,0.00018249,2]
[342643214,1732021842855,-377.03876612,0.00018249,2]
[342643215,1732021842866,-370.24494436,0.00018249,2]
[342643216,1732021842877,-500.0,0.00018249,2]
[342643217,1732021842889,-500.0,0.00018249,2]
[342643218,1732021842900,-500.0,0.00018249,2]
[342643219,1732021842910,-500.0,0.00018249,2]
[342643220,1732021842921,-500.0,0.00018249,2]
[342643221,1732021842932,-500.0,0.00018249,2]
[342643222,1732021842942,-620.39708557,0.00018249,2]
[342643223,1732021842953,-500.0,0.00018249,2]
[342643224,1732021842963,-500.0,0.00018249,2]
[342643225,1732021842974,-500.0,0.00018249,2]
[342643226,1732021842984,-500.0,0.00018249,2]
[342643227,1732021842995,-500.0,0.00018249,2]
[342643228,1732021843005,-500.0,0.00018249,2]
[342643231,1732021843016,-500.0,0.00018249,2]
[342643233,1732021843026,-500.0,0.00018249,2]
[342643234,1732021843036,-500.0,0.00018249,2]
[342643235,1732021843047,-500.0,0.00018249,2]
[342643236,1732021843056,-500.0,0.00018249,2]
[342643237,1732021843066,-500.0,0.00018249,2]
[342643238,1732021843076,-500.0,0.00018249,2]
[342643239,1732021843087,-500.0,0.00018249,2]
[342643240,1732021843097,-500.0,0.00018249,2]
[342643241,1732021843107,-500.0,0.00018249,2]
[342643242,1732021843117,-500.0,0.00018249,2]
[342643243,1732021843128,-500.0,0.00018249,2]
[342643244,1732021843140,-500.0,0.00018249,2]
[342643245,1732021843151,-500.0,0.00018249,2]
[342643246,1732021843162,-500.0,0.00018249,2]
[342643247,1732021843172,-500.0,0.00018249,2]
[342643248,1732021843182,-500.0,0.00018249,2]
[342643249,1732021843194,-500.0,0.00018249,2]
[342643250,1732021843206,-500.0,0.00018249,2]
[342643251,1732021843217,-281.78154337,0.00018249,2]
[342643252,1732021843227,-304.26605881,0.00018249,2]
[342643253,1732021843241,-195.73394119,0.00018249,2]
[342643254,1732021843251,-246.97634052,0.00018249,2]
[342643255,1732021843264,-253.02365948,0.00018249,2]
[342643256,1732021843274,-500.0,0.00018249,2]
[342643257,1732021843284,-500.0,0.00018249,2]
[342643258,1732021843295,-500.0,0.00018249,2]
[342643259,1732021843305,-500.0,0.00018249,2]
[342643260,1732021843315,-500.0,0.00018249,2]
[342643261,1732021843486,-500.0,0.00018249,2]
[342643262,1732021843496,-500.0,0.00018249,2]
[342643263,1732021843506,-500.0,0.00018249,2]
[342643264,1732021843516,-500.0,0.00018249,2]
[342643265,1732021843528,-500.0,0.00018249,2]
[342643266,1732021843538,-500.0,0.00018249,2]
[342643267,1732021843548,-280.18434727,0.00018249,2]
[342643268,1732021843560,-219.81565273,0.00018249,2]
[342643269,1732021843570,-500.0,0.00018249,2]
[342643270,1732021843579,-500.0,0.00018249,2]
[342643271,1732021843589,-500.0,0.00018249,2]
[342643272,1732021843599,-500.0,0.00018249,2]
[342643273,1732021843608,-500.0,0.00018249,2]
[342643274,1732021843618,-500.0,0.00018249,2]
[342643275,1732021843627,-500.0,0.00018249,2]
[342643276,1732021843638,-451.91682635,0.00018273,2]
[342643277,1732021843649,-642.47030796,0.00018885,2]
[342643306,1732022841166,-377.39467142,0.00013972,2]
[342643313,1732022949127,-300.0,0.00010899,2]
[342643314,1732022949157,-300.0,0.00010899,2]
[342643315,1732022949182,-30718.65113406,0.000109,2]
[342643316,1732022949381,-159.10651191,0.00011978,2]
[342643317,1732022955087,-260.89348809,0.00011978,2]
[342643318,1732022955111,-131.10651191,0.00011989,2]
[342643409,1732023032186,-257.60532858,0.00013972,2]
[342643412,1732023032195,-400.0,0.00013973,2]
[342643414,1732023032204,-250.0,0.0001426,2]
[342643416,1732023032214,-20800.51977918,0.00014418,2]
[342643418,1732023032226,-727.64288736,0.00014418,2]
[342643479,1732023038380,-341.76454275,0.00014418,2]
[342643480,1732023038393,-3030.07279071,0.00014418,2]
[342643481,1732023038403,-509.68514541,0.00015363,2]
[342643482,1732023038415,-1567.14576584,0.00015363,2]
[342643483,1732023038424,-300.0,0.00015422,2]
[342643484,1732023038434,-300.0,0.00015422,2]
[342643485,1732023038444,-25449.34409587,0.00015423,2]
[342643486,1732023038537,-10373.51941003,0.00015423,2]
[342643488,1732023038548,-418.03431185,0.00015463,2]
[342643489,1732023038557,-1517.9834434,0.00015463,2]
[342643491,1732023038567,-790.109417,0.00015543,2]
[342643492,1732023038576,-2866.0124169,0.00015607,2]
[342643493,1732023038586,-3000.0,0.00016099,2]
[342643494,1732023038596,-264.11541846,0.00016153,2]
[342643495,1732023038606,-500.0,0.00016153,2]
[342643496,1732023038616,-374.47166049,0.00016153,2]
[342643497,1732023038628,-500.0,0.00016153,2]
[342643498,1732023038639,-428.17815434,0.00016153,2]
[342643499,1732023038651,-7548.6288845,0.00016154,2]
[342643500,1732023038667,-300.150226,0.00016159,2]
[342643501,1732023038677,-790.109417,0.00016228,2]
[342643502,1732023038687,-500.0,0.00016438,2]
[342643503,1732023038697,-568.93300951,0.00016438,2]
[342643504,1732023038706,-250.0,0.00016662,2]
[342643505,1732023038716,-1408.9411415,0.00016857,2]
[342643506,1732023038725,-420.0,0.00016871,2]
[342643507,1732023038735,-790.109417,0.00016913,2]
[342643508,1732023038745,-420.0,0.00016964,2]
[342643509,1732023038754,-1567.1457658,0.00017228,2]
[342643510,1732023038765,-7015.625,0.00018,2]
[342643511,1732023038775,-152.647872,0.00018407,2]
[342643512,1732023038784,-151.0,0.00018407,2]
[342643513,1732023038794,-151.0,0.00018407,2]
[342643514,1732023038803,-151.0,0.00018407,2]
[342643515,1732023038817,-151.0,0.00018407,2]
[342643516,1732023038827,-151.0,0.00018407,2]
[342643517,1732023038837,-151.0,0.00018419,2]
[342643518,1732023038846,-151.0,0.00018419,2]
[342643519,1732023038858,-151.0,0.00018419,2]
[342643520,1732023038867,-151.0,0.00018419,2]
[342643521,1732023038877,-151.0,0.00018419,2]
[342643522,1732023038887,-151.0,0.00018419,2]
[342643523,1732023038897,-151.0,0.00018419,2]
[342643524,1732023038909,-151.0,0.0001843,2]
[342643525,1732023038919,-151.0,0.0001843,2]
[342643526,1732023038928,-151.0,0.0001843,2]
[342643527,1732023038938,-201.223605,0.0001843,2]
[342643528,1732023038947,-201.223605,0.0001843,2]
[342643529,1732023038957,-151.0,0.0001843,2]
[342643530,1732023038966,-151.0,0.0001843,2]
[342643531,1732023038976,-151.0,0.0001843,2]
[342643532,1732023038986,-151.0,0.0001843,2]
[342643533,1732023038996,-151.0,0.0001843,2]
[342643534,1732023039005,-151.0,0.0001843,2]
[342643535,1732023039015,-151.0,0.0001843,2]
[342643536,1732023039025,-151.0,0.0001843,2]
[342643537,1732023039035,-151.0,0.0001843,2]
[342643538,1732023039044,-151.0,0.0001843,2]
[342643539,1732023039054,-151.0,0.0001843,2]
[342643540,1732023039064,-151.0,0.0001843,2]
[342643541,1732023039074,-151.0,0.0001843,2]
[342643542,1732023039083,-177.083168,0.0001843,2]
[342643543,1732023039093,-587.0,0.00018457,2]
[342643544,1732023039102,-8580.71029912,0.00018553,2]
[342643545,1732023039111,-151.0,0.00018553,2]
[342643546,1732023039120,-151.0,0.00018629,2]
[342643547,1732023039129,-151.0,0.00018629,2]
[342643548,1732023039139,-587.0,0.00018661,2]
[342643549,1732023039147,-1567.1457658,0.00019092,2]
[342643550,1732023039160,-161.44396,0.00019178,2]
[342643551,1732023039171,-160.118326,0.00019178,2]
[342643552,1732023039181,-165.383182,0.00019178,2]
[342643553,1732023039191,-2756.22084787,0.000199,2]
[342643554,1732023039200,-173.71780558,0.00019989,2]
[342643555,1732023039209,-180.28098049,0.00019989,2]
[342643556,1732023039219,-52408.74459521,0.0001999,2]
[342643557,1732023039228,-1433.3939441,0.0001999,2]
[342643558,1732023039238,-8013.5949498,0.0001999,2]
[342643610,1732023043118,-8580.7102991,0.00018379,2]
[342643611,1732023043128,-151.0,0.00018553,2]
[342643612,1732023043138,-3699.929033,0.0001999,2]
[342643613,1732023043204,-16420.99995,0.0001999,2]
[342643642,1732023046063,-151.0,0.00018553,2]
[342643643,1732023046072,-19118.80986777,0.0001999,2]
[342643644,1732023046140,-10189.73999999,0.0001999,2]
[342643645,1732023046153,-10647.77739148,0.0001999,2]
[342643646,1732023046168,-3816.95662261,0.0001999,2]
[342643647,1732023046177,-151.0,0.0001999,2]
[342643648,1732023046187,-151.0,0.0001999,2]
[342643649,1732023046196,-151.0,0.0001999,2]
[342643650,1732023046205,-151.0,0.0001999,2]
[342643651,1732023046214,-151.0,0.0001999,2]
[342643652,1732023046223,-151.0,0.0001999,2]
[342643653,1732023046233,-1365.22585664,0.0002,2]
[342643666,1732024028733,-400.0,0.00013973,2]
[342643667,1732024028754,-268.10098021,0.00017562,2]
[342643668,1732024028775,-300.0,0.00017662,2]
[342643669,1732024028798,-300.0,0.00017662,2]
[342643670,1732024028823,-15716.13295711,0.00017663,2]
[342643671,1732024041095,-1336.78879946,0.00017663,2]
[342643672,1732024054146,-316.79532685,0.00017663,2]
[342643744,1732024236296,-455.8688184,0.00017663,2]
[342643746,1732024236311,-1695.21065336,0.00017663,2]
[342643922,1732024238293,-3491.96172862,0.00017663,2]
[342643939,1732024238476,-1887.2417162,0.00017663,2]
[342643941,1732024238486,-421.5856672,0.00017759,2]
[342643943,1732024238495,-300.0,0.00017772,2]
[342643945,1732024238505,-300.0,0.00017772,2]
[342643947,1732024238514,-1667.6726166,0.00017773,2]
[342643949,1732024238526,-1332.3273834,0.00017773,2]
[342643950,1732024238540,-4577.60761988,0.0001788,2]
[342643952,1732024238549,-7015.625,0.00018,2]
[342643954,1732024238559,-151.0,0.00018553,2]
[342643956,1732024238569,-151.0,0.00018553,2]
[342643958,1732024238578,-285.697907,0.00018553,2]
[342643960,1732024238587,-212.325789,0.00018553,2]
[342643962,1732024238597,-212.325789,0.00018553,2]
[342643964,1732024238606,-151.0,0.00018553,2]
[342643965,1732024238616,-217.446333,0.00018629,2]
[342643967,1732024238625,-217.446333,0.00018629,2]